[Event "GrandPrix_29.05"]
[Site "Chess.com"]
[Date "2020.05.29"]
[Round "8"]
[White "Yaroslav_Remizov"]
[Black "Shahinyan_ChessMood"]
[Result "0-1"]
[WhiteElo "2174"]
[BlackElo "2386"]
[TimeControl "600+2"]
[EndTime "12:56:43 PDT"]
[Termination "Shahinyan_ChessMood won by checkmate"]

1. e4 {[%clk 0:10:01.9]} 1... e6 {[%clk 0:09:54.2]} 2. d4 {[%clk 0:10:01.4]}
2... d5 {[%clk 0:09:56.1]} 3. Nc3 {[%clk 0:10:01.3]} 3... Bb4 {[%clk 0:09:57.5]}
4. e5 {[%clk 0:10:02.2]} 4... c5 {[%clk 0:09:56.6]} 5. a3 {[%clk 0:10:03.5]}
5... Bxc3+ {[%clk 0:09:57.9]} 6. bxc3 {[%clk 0:10:05.4]} 6... Qc7 {[%clk
0:09:59.3]} 7. Qg4 {[%clk 0:10:04.3]} 7... f5 {[%clk 0:10:00.6]} 8. exf6 {[%clk
0:10:04.2]} 8... Nxf6 {[%clk 0:09:57.3]} 9. Qg3 {[%clk 0:10:05.6]} 9... Qa5
{[%clk 0:09:09.7]} 10. Bd2 {[%clk 0:06:37.2]} 10... O-O {[%clk 0:09:07.7]} 11.
f3 {[%clk 0:06:20.7]} 11... Nc6 {[%clk 0:08:57.7]} 12. Nh3 {[%clk 0:05:55.6]}
12... Qb6 {[%clk 0:07:43.9]} 13. dxc5 {[%clk 0:05:20.2]} 13... Qb2 {[%clk
0:07:40.5]} 14. Rd1 {[%clk 0:04:49.2]} 14... Qxa3 {[%clk 0:07:35.1]} 15. Bd3
{[%clk 0:04:46.4]} 15... Qxc5 {[%clk 0:07:34.9]} 16. Ke2 {[%clk 0:02:11.1]}
16... e5 {[%clk 0:07:31.6]} 17. Bh6 {[%clk 0:02:11.7]} 17... Rf7 {[%clk
0:07:22.3]} 18. Be3 {[%clk 0:02:11.9]} 18... Qxc3 {[%clk 0:07:12.3]} 19. Ng5
{[%clk 0:01:32.6]} 19... e4 {[%clk 0:06:51.6]} 20. Nxf7 {[%clk 0:00:32.9]} 20...
exd3+ {[%clk 0:06:49.4]} 21. cxd3 {[%clk 0:00:31.1]} 21... Kxf7 {[%clk
0:06:49.8]} 22. Qc7+ {[%clk 0:00:31.7]} 22... Kg8 {[%clk 0:06:46.2]} 23. Rc1
{[%clk 0:00:08.5]} 23... Qb2+ {[%clk 0:06:39.3]} 24. Bd2 {[%clk 0:00:09.5]}
24... Bf5 {[%clk 0:06:37]} 25. Rhd1 {[%clk 0:00:09.9]} 25... Re8+ {[%clk
0:06:29.7]} 26. Kf2 {[%clk 0:00:08.4]} 26... Qd4+ {[%clk 0:06:28]} 27. Kg3
{[%clk 0:00:07.7]} 27... Nh5# {[%clk 0:06:26.9]} 0-1

[Event "GrandPrix_29.05"]
[Site "Chess.com"]
[Date "2020.05.29"]
[Round "8"]
[White "Nikithebest"]
[Black "kostasam18"]
[Result "0-1"]
[WhiteElo "2117"]
[BlackElo "2075"]
[TimeControl "600+2"]
[EndTime "12:56:43 PDT"]
[Termination "kostasam18 won by resignation"]

1. d4 {[%clk 0:10:01.9]} 1... Nf6 {[%clk 0:09:59.4]} 2. Nf3 {[%clk 0:10:01.2]}
2... d5 {[%clk 0:09:59.2]} 3. e3 {[%clk 0:09:54.3]} 3... c5 {[%clk 0:09:50.5]}
4. Bd3 {[%clk 0:09:46]} 4... Nc6 {[%clk 0:09:47.1]} 5. b3 {[%clk 0:09:29.6]}
5... cxd4 {[%clk 0:09:45.9]} 6. exd4 {[%clk 0:09:29.1]} 6... Bg4 {[%clk
0:09:43.5]} 7. Bb2 {[%clk 0:09:18.3]} 7... e6 {[%clk 0:09:43.3]} 8. O-O {[%clk
0:09:19]} 8... Bd6 {[%clk 0:09:42.8]} 9. Nbd2 {[%clk 0:09:19.4]} 9... O-O {[%clk
0:09:42.2]} 10. a3 {[%clk 0:09:11.1]} 10... a6 {[%clk 0:09:21.7]} 11. Qe1 {[%clk
0:09:00.9]} 11... b5 {[%clk 0:08:50.6]} 12. Ne5 {[%clk 0:09:00.1]} 12... Qb6
{[%clk 0:08:41.9]} 13. Nxg4 {[%clk 0:06:16.3]} 13... Nxg4 {[%clk 0:08:37.9]} 14.
Nf3 {[%clk 0:06:17.9]} 14... h6 {[%clk 0:08:23.4]} 15. h3 {[%clk 0:06:18.9]}
15... Nf6 {[%clk 0:08:23.3]} 16. Ne5 {[%clk 0:06:17.6]} 16... Nxd4 {[%clk
0:08:09.4]} 17. Rd1 {[%clk 0:06:07.9]} 17... Nc6 {[%clk 0:07:51.3]} 18. Nxc6
{[%clk 0:06:05.3]} 18... Qxc6 {[%clk 0:07:53.2]} 19. Bxf6 {[%clk 0:06:06.4]}
19... gxf6 {[%clk 0:07:54.4]} 20. Qe3 {[%clk 0:06:04.2]} 20... Kg7 {[%clk
0:07:50.5]} 21. Qf3 {[%clk 0:05:43.3]} 21... f5 {[%clk 0:07:36]} 22. g4 {[%clk
0:05:34.8]} 22... f4 {[%clk 0:07:32.2]} 23. g5 {[%clk 0:05:16.1]} 23... hxg5
{[%clk 0:07:18.8]} 24. Qh5 {[%clk 0:05:16]} 24... Kf6 {[%clk 0:07:13.7]} 25.
Qh6+ {[%clk 0:05:03.3]} 25... Ke7 {[%clk 0:07:13.1]} 26. Qxg5+ {[%clk
0:05:02.2]} 26... f6 {[%clk 0:07:11.9]} 27. Qh6 {[%clk 0:04:56]} 27... Rf7
{[%clk 0:06:37.7]} 28. Bg6 {[%clk 0:04:47.2]} 28... Rg8 {[%clk 0:06:33.4]} 29.
Kh1 {[%clk 0:03:37.9]} 29... Rfg7 {[%clk 0:06:29.9]} 30. Bh5 {[%clk 0:03:23.4]}
30... d4+ {[%clk 0:05:52.3]} 31. f3 {[%clk 0:02:49.9]} 31... Qxc2 {[%clk
0:05:49.4]} 32. Bg4 {[%clk 0:02:37.4]} 32... Rh7 {[%clk 0:05:17.9]} 33. Rc1
{[%clk 0:02:28.9]} 33... Rxh6 {[%clk 0:05:16.6]} 34. Rxc2 {[%clk 0:02:28.5]}
34... f5 {[%clk 0:05:15.8]} 35. Kg2 {[%clk 0:02:24]} 35... fxg4 {[%clk 0:05:14]}
36. fxg4 {[%clk 0:02:25.9]} 36... e5 {[%clk 0:05:12.8]} 37. Rc6 {[%clk
0:02:25.9]} 37... e4 {[%clk 0:05:08.1]} 38. Rxa6 {[%clk 0:02:25.5]} 38... f3+
{[%clk 0:05:07.3]} 0-1

[Event "GrandPrix_29.05"]
[Site "Chess.com"]
[Date "2020.05.29"]
[Round "8"]
[White "DrVelja"]
[Black "gliglu"]
[Result "1-0"]
[WhiteElo "2212"]
[BlackElo "2244"]
[TimeControl "600+2"]
[EndTime "12:57:01 PDT"]
[Termination "DrVelja won by checkmate"]

1. e4 {[%clk 0:09:49.6]} 1... c5 {[%clk 0:09:59.7]} 2. Nf3 {[%clk 0:09:49.9]}
2... Nc6 {[%clk 0:10:00.6]} 3. d4 {[%clk 0:09:50.1]} 3... cxd4 {[%clk
0:10:01.6]} 4. Nxd4 {[%clk 0:09:52]} 4... g6 {[%clk 0:10:02.8]} 5. c4 {[%clk
0:09:52.8]} 5... Bg7 {[%clk 0:10:03.9]} 6. Be3 {[%clk 0:09:54.4]} 6... Nf6
{[%clk 0:10:03.5]} 7. Nc3 {[%clk 0:09:55.4]} 7... O-O {[%clk 0:10:02.7]} 8. Be2
{[%clk 0:09:56.4]} 8... d6 {[%clk 0:10:03.6]} 9. O-O {[%clk 0:09:56.6]} 9... Bd7
{[%clk 0:10:03.6]} 10. Nc2 {[%clk 0:09:57.6]} 10... Rc8 {[%clk 0:09:56.6]} 11.
Qd2 {[%clk 0:09:43]} 11... Qa5 {[%clk 0:09:53.7]} 12. f4 {[%clk 0:09:11.3]}
12... Ng4 {[%clk 0:09:20.7]} 13. Bxg4 {[%clk 0:09:06.2]} 13... Bxg4 {[%clk
0:09:20.9]} 14. f5 {[%clk 0:08:44.1]} 14... Ne5 {[%clk 0:09:02.4]} 15. Qf2
{[%clk 0:04:29.3]} 15... Nxc4 {[%clk 0:08:24.3]} 16. Nd5 {[%clk 0:04:25.8]}
16... Qd8 {[%clk 0:07:55]} 17. h3 {[%clk 0:04:14.2]} 17... Bh5 {[%clk
0:06:19.7]} 18. g4 {[%clk 0:04:12.8]} 18... Nxb2 {[%clk 0:05:56.4]} 19. gxh5
{[%clk 0:03:40.7]} 19... Nd3 {[%clk 0:05:56.4]} 20. Qh4 {[%clk 0:03:25.9]} 20...
Rxc2 {[%clk 0:05:39.4]} 21. Nxe7+ {[%clk 0:03:20.6]} 21... Kh8 {[%clk 0:05:40]}
22. hxg6 {[%clk 0:02:47.6]} 22... fxg6 {[%clk 0:05:34.5]} 23. fxg6 {[%clk
0:02:48.4]} 23... h6 {[%clk 0:05:10.7]} 24. Bxh6 {[%clk 0:02:47.3]} 24... Rxf1+
{[%clk 0:03:43.4]} 25. Rxf1 {[%clk 0:02:45.1]} 25... Qxe7 {[%clk 0:03:30.7]} 26.
Bxg7+ {[%clk 0:02:44.1]} 26... Kxg7 {[%clk 0:03:26.6]} 27. Qh7# {[%clk
0:02:44.6]} 1-0

[Event "GrandPrix_29.05"]
[Site "Chess.com"]
[Date "2020.05.29"]
[Round "8"]
[White "Karinaa87"]
[Black "larrylarsen"]
[Result "1-0"]
[WhiteElo "1859"]
[BlackElo "1154"]
[TimeControl "600+2"]
[EndTime "12:57:01 PDT"]
[Termination "Karinaa87 won on time"]

1. e4 {[%clk 0:10:01.9]} 1... c5 {[%clk 0:09:57.8]} 2. Nf3 {[%clk 0:10:01.7]}
2... e6 {[%clk 0:09:57]} 3. d3 {[%clk 0:10:01.9]} 3... Nc6 {[%clk 0:09:55]} 4.
g3 {[%clk 0:10:01.1]} 4... Nf6 {[%clk 0:09:47.2]} 5. Bg2 {[%clk 0:10:01.4]} 5...
Be7 {[%clk 0:09:41.5]} 6. O-O {[%clk 0:10:01.7]} 6... e5 {[%clk 0:09:28.4]} 7.
Nc3 {[%clk 0:09:56.7]} 7... O-O {[%clk 0:09:22.9]} 8. Bg5 {[%clk 0:09:48.5]}
8... h6 {[%clk 0:09:06.8]} 9. Bxf6 {[%clk 0:09:47.1]} 9... Bxf6 {[%clk
0:09:06.6]} 10. Nd5 {[%clk 0:09:48.6]} 10... d6 {[%clk 0:09:04.1]} 11. c3 {[%clk
0:09:45.3]} 11... Be6 {[%clk 0:09:00.7]} 12. Re1 {[%clk 0:09:39]} 12... g6
{[%clk 0:08:41.4]} 13. Nxf6+ {[%clk 0:09:31.6]} 13... Qxf6 {[%clk 0:08:40.5]}
14. Nd2 {[%clk 0:09:28.2]} 14... Kg7 {[%clk 0:08:22.9]} 15. Rf1 {[%clk
0:09:26.4]} 15... Qe7 {[%clk 0:08:15.7]} 16. Nc4 {[%clk 0:09:22.1]} 16... Rae8
{[%clk 0:07:44.8]} 17. Ne3 {[%clk 0:09:19.6]} 17... Qd7 {[%clk 0:07:38.1]} 18.
f4 {[%clk 0:09:08.4]} 18... exf4 {[%clk 0:07:22.8]} 19. Rxf4 {[%clk 0:09:06.3]}
19... f5 {[%clk 0:06:26.8]} 20. d4 {[%clk 0:09:03.2]} 20... cxd4 {[%clk
0:06:02.6]} 21. cxd4 {[%clk 0:08:56]} 21... Ne7 {[%clk 0:04:20]} 22. d5 {[%clk
0:08:52.7]} 22... Bg8 {[%clk 0:04:18.1]} 23. exf5 {[%clk 0:08:47.3]} 23... Nxf5
{[%clk 0:03:55.9]} 24. Nxf5+ {[%clk 0:08:47.7]} 24... gxf5 {[%clk 0:03:47.6]}
25. Qd4+ {[%clk 0:08:44.3]} 25... Re5 {[%clk 0:03:44.3]} 26. Raf1 {[%clk
0:08:41.2]} 26... Kh7 {[%clk 0:03:01.3]} 27. g4 {[%clk 0:08:33.6]} 27... Qg7
{[%clk 0:02:55.9]} 28. gxf5 {[%clk 0:08:25.8]} 28... Rf6 {[%clk 0:02:08.1]} 29.
Kh1 {[%clk 0:08:13.2]} 29... b6 {[%clk 0:01:54.3]} 30. Rg4 {[%clk 0:08:09.3]}
30... Qf7 {[%clk 0:01:39.4]} 31. Qd3 {[%clk 0:07:40.4]} 31... Qe7 {[%clk
0:01:16.6]} 32. Qg3 {[%clk 0:07:25.3]} 32... Bxd5 {[%clk 0:01:01.7]} 33. Bxd5
{[%clk 0:07:19.6]} 33... Rxd5 {[%clk 0:01:01.8]} 34. Rg1 {[%clk 0:07:20.9]}
34... Rf7 {[%clk 0:00:48.6]} 35. f6 {[%clk 0:07:06.9]} 35... Qxf6 {[%clk
0:00:41.6]} 36. Rf4 {[%clk 0:06:52.7]} 1-0

[Event "GrandPrix_29.05"]
[Site "Chess.com"]
[Date "2020.05.29"]
[Round "8"]
[White "ZoranRunic1"]
[Black "francyIM"]
[Result "0-1"]
[WhiteElo "2387"]
[BlackElo "2610"]
[TimeControl "600+2"]
[EndTime "12:57:05 PDT"]
[Termination "francyIM won by resignation"]

1. e4 {[%clk 0:09:50.9]} 1... e5 {[%clk 0:09:54.9]} 2. Nc3 {[%clk 0:09:48.8]}
2... Nf6 {[%clk 0:09:54.7]} 3. Bc4 {[%clk 0:09:48.6]} 3... Nxe4 {[%clk 0:09:54]}
4. Qh5 {[%clk 0:09:47.7]} 4... Nd6 {[%clk 0:09:53.2]} 5. Qxe5+ {[%clk
0:09:46.5]} 5... Qe7 {[%clk 0:09:51.3]} 6. Qxe7+ {[%clk 0:09:46.9]} 6... Bxe7
{[%clk 0:09:53.2]} 7. Bb3 {[%clk 0:09:47.3]} 7... c6 {[%clk 0:09:50.3]} 8. d4
{[%clk 0:09:46.2]} 8... Nf5 {[%clk 0:09:51.3]} 9. d5 {[%clk 0:09:46.7]} 9... Nd4
{[%clk 0:09:51.4]} 10. Be3 {[%clk 0:09:44.8]} 10... Nxb3 {[%clk 0:09:51.6]} 11.
axb3 {[%clk 0:09:44.9]} 11... Na6 {[%clk 0:09:50]} 12. Nge2 {[%clk 0:09:24.3]}
12... O-O {[%clk 0:09:50.3]} 13. O-O-O {[%clk 0:09:06.1]} 13... d6 {[%clk
0:09:42.8]} 14. Bf4 {[%clk 0:08:33.8]} 14... Rd8 {[%clk 0:09:40.2]} 15. h4
{[%clk 0:08:12.1]} 15... Nb4 {[%clk 0:09:32.5]} 16. f3 {[%clk 0:07:34.9]} 16...
h6 {[%clk 0:09:26.6]} 17. Ng3 {[%clk 0:07:07.4]} 17... a6 {[%clk 0:08:58.7]} 18.
Rd4 {[%clk 0:06:37.8]} 18... c5 {[%clk 0:08:57]} 19. Re4 {[%clk 0:06:36.3]}
19... Bf6 {[%clk 0:08:57.5]} 20. Nh5 {[%clk 0:05:30.7]} 20... Bxc3 {[%clk
0:08:52.6]} 21. bxc3 {[%clk 0:05:30.5]} 21... Nxd5 {[%clk 0:08:53.3]} 22. c4
{[%clk 0:05:29.6]} 22... Nb4 {[%clk 0:08:32]} 23. Bd2 {[%clk 0:04:12]} 23... a5
{[%clk 0:06:00.3]} 24. Kb2 {[%clk 0:03:26.5]} 24... Bf5 {[%clk 0:05:49.5]} 25.
Rf4 {[%clk 0:03:20]} 25... Bg6 {[%clk 0:05:49.9]} 26. Nxg7 {[%clk 0:02:38.3]}
26... Kxg7 {[%clk 0:05:40]} 27. h5 {[%clk 0:02:35.7]} 27... Bxc2 {[%clk
0:05:13.8]} 28. Rg4+ {[%clk 0:02:22.5]} 28... Kh7 {[%clk 0:05:13.5]} 29. Bxb4
{[%clk 0:02:09]} 29... axb4 {[%clk 0:05:15.4]} 30. Kxc2 {[%clk 0:02:09.7]} 30...
Ra2+ {[%clk 0:05:16.3]} 31. Kd3 {[%clk 0:02:10.6]} 31... Rb2 {[%clk 0:05:17.1]}
32. Re1 {[%clk 0:02:03.8]} 32... Rxb3+ {[%clk 0:05:14.6]} 33. Kc2 {[%clk
0:02:04]} 33... Rc3+ {[%clk 0:05:15.3]} 34. Kb2 {[%clk 0:02:03.9]} 34... Rg8
{[%clk 0:05:16.2]} 35. Re7 {[%clk 0:01:53.6]} 35... Rxg4 {[%clk 0:05:15.6]} 36.
fxg4 {[%clk 0:01:54.1]} 36... Rxc4 {[%clk 0:05:15.6]} 37. Rxf7+ {[%clk
0:01:55.2]} 37... Kg8 {[%clk 0:05:14.9]} 38. Rxb7 {[%clk 0:01:55]} 38... Rxg4
{[%clk 0:05:15.6]} 39. Rd7 {[%clk 0:01:56.4]} 39... Rxg2+ {[%clk 0:05:15.7]} 40.
Kb3 {[%clk 0:01:57.5]} 40... Rd2 {[%clk 0:05:13.2]} 0-1

[Event "GrandPrix_29.05"]
[Site "Chess.com"]
[Date "2020.05.29"]
[Round "8"]
[White "Korona_91"]
[Black "friesnielsen2302"]
[Result "1-0"]
[WhiteElo "2107"]
[BlackElo "1844"]
[TimeControl "600+2"]
[EndTime "12:57:06 PDT"]
[Termination "Korona_91 won by resignation"]

1. e4 {[%clk 0:10:01.9]} 1... c6 {[%clk 0:09:19.9]} 2. d4 {[%clk 0:10:00]} 2...
d6 {[%clk 0:09:20]} 3. Nc3 {[%clk 0:09:56]} 3... d5 {[%clk 0:09:20.5]} 4. Nf3
{[%clk 0:09:40.7]} 4... dxe4 {[%clk 0:09:09.2]} 5. Nxe4 {[%clk 0:09:32.7]} 5...
Bg4 {[%clk 0:09:09.4]} 6. Bc4 {[%clk 0:09:14.5]} 6... e6 {[%clk 0:09:06.5]} 7.
c3 {[%clk 0:09:05]} 7... Nf6 {[%clk 0:09:02]} 8. Ng3 {[%clk 0:08:51.3]} 8...
Nbd7 {[%clk 0:08:35.8]} 9. h3 {[%clk 0:08:50.5]} 9... Bxf3 {[%clk 0:08:35.8]}
10. Qxf3 {[%clk 0:08:50.7]} 10... Bd6 {[%clk 0:08:36.7]} 11. O-O {[%clk
0:08:47.8]} 11... O-O {[%clk 0:08:31.6]} 12. Bb3 {[%clk 0:08:41.6]} 12... Qc7
{[%clk 0:08:31.6]} 13. Bc2 {[%clk 0:08:37.3]} 13... c5 {[%clk 0:08:24.5]} 14.
dxc5 {[%clk 0:08:30]} 14... Bxc5 {[%clk 0:08:25.3]} 15. Bf4 {[%clk 0:08:08.6]}
15... Bd6 {[%clk 0:08:21.6]} 16. Bxd6 {[%clk 0:07:50.4]} 16... Qxd6 {[%clk
0:08:20.8]} 17. Rad1 {[%clk 0:07:48.9]} 17... Qc7 {[%clk 0:08:17.1]} 18. Rd4
{[%clk 0:07:44]} 18... Ne5 {[%clk 0:08:12.5]} 19. Qe2 {[%clk 0:07:24.1]} 19...
Ng6 {[%clk 0:07:58.6]} 20. h4 {[%clk 0:07:19.1]} 20... Nf4 {[%clk 0:07:52.1]}
21. Qf3 {[%clk 0:07:06.7]} 21... e5 {[%clk 0:07:50.2]} 22. Rdd1 {[%clk
0:07:06.5]} 22... Rad8 {[%clk 0:07:34.6]} 23. h5 {[%clk 0:06:56.2]} 23... h6
{[%clk 0:07:25.5]} 24. Ne4 {[%clk 0:06:39.3]} 24... N4xh5 {[%clk 0:07:12.8]} 25.
g4 {[%clk 0:06:24.7]} 25... Nxe4 {[%clk 0:06:59.8]} 26. gxh5 {[%clk 0:06:24.5]}
26... Nf6 {[%clk 0:06:50.6]} 27. Qf5 {[%clk 0:06:16.8]} 27... Rde8 {[%clk
0:06:34.3]} 28. Kh1 {[%clk 0:06:06.8]} 28... e4 {[%clk 0:06:26.7]} 29. f4 {[%clk
0:05:32.9]} 29... e3 {[%clk 0:06:03.8]} 30. Rg1 {[%clk 0:05:27.7]} 30... Qc6+
{[%clk 0:05:57.3]} 31. Kh2 {[%clk 0:05:19.6]} 31... e2 {[%clk 0:05:46]} 32. Rde1
{[%clk 0:05:20.2]} 32... Kh8 {[%clk 0:05:16.6]} 33. Rg2 {[%clk 0:05:07.4]} 33...
Qf3 {[%clk 0:05:10.4]} 34. Bd3 {[%clk 0:02:23]} 34... Qxf4+ {[%clk 0:04:46.4]}
35. Qxf4 {[%clk 0:02:22.7]} 1-0

[Event "GrandPrix_29.05"]
[Site "Chess.com"]
[Date "2020.05.29"]
[Round "8"]
[White "LANCELOT96"]
[Black "Haykos"]
[Result "0-1"]
[WhiteElo "2069"]
[BlackElo "2192"]
[TimeControl "600+2"]
[EndTime "12:57:09 PDT"]
[Termination "Haykos won by resignation"]

1. d4 {[%clk 0:10:01.9]} 1... d5 {[%clk 0:09:54.4]} 2. c4 {[%clk 0:10:03.3]}
2... dxc4 {[%clk 0:09:54.9]} 3. Nc3 {[%clk 0:10:04.7]} 3... a6 {[%clk 0:09:45]}
4. e4 {[%clk 0:09:51.1]} 4... b5 {[%clk 0:09:42.1]} 5. a4 {[%clk 0:09:52.3]}
5... b4 {[%clk 0:09:40.2]} 6. Na2 {[%clk 0:09:53.6]} 6... Bb7 {[%clk 0:09:37.8]}
7. f3 {[%clk 0:09:52.1]} 7... e5 {[%clk 0:09:36.9]} 8. dxe5 {[%clk 0:09:36]}
8... Qxd1+ {[%clk 0:09:25.1]} 9. Kxd1 {[%clk 0:09:37.3]} 9... Nc6 {[%clk
0:09:26.2]} 10. Bf4 {[%clk 0:09:36.8]} 10... Nge7 {[%clk 0:09:24.3]} 11. Bxc4
{[%clk 0:09:31.2]} 11... Ng6 {[%clk 0:09:23.1]} 12. Be3 {[%clk 0:09:24]} 12...
Ncxe5 {[%clk 0:09:20.7]} 13. Bb3 {[%clk 0:09:22.9]} 13... c5 {[%clk 0:09:00.6]}
14. Rc1 {[%clk 0:09:10]} 14... Rd8+ {[%clk 0:09:00.4]} 15. Ke2 {[%clk
0:09:07.5]} 15... a5 {[%clk 0:08:27.8]} 16. Bc2 {[%clk 0:08:36.3]} 16... Ba6+
{[%clk 0:07:22.5]} 17. Kf2 {[%clk 0:08:37.5]} 17... c4 {[%clk 0:07:23.8]} 18.
Bb1 {[%clk 0:08:37.8]} 18... c3 {[%clk 0:07:09.4]} 19. b3 {[%clk 0:08:38.9]}
19... Nd3+ {[%clk 0:06:11.5]} 20. Bxd3 {[%clk 0:08:38.7]} 20... Rxd3 {[%clk
0:06:12.1]} 21. Ne2 {[%clk 0:08:39.8]} 21... Rxe3 {[%clk 0:05:44.2]} 22. Kxe3
{[%clk 0:08:40.2]} 22... Bc5+ {[%clk 0:05:45.9]} 23. Nd4 {[%clk 0:08:41.8]}
23... Ke7 {[%clk 0:05:47.3]} 24. Nxc3 {[%clk 0:08:11.2]} 24... bxc3 {[%clk
0:05:14.1]} 25. Rxc3 {[%clk 0:08:12.5]} 25... Bb6 {[%clk 0:05:04.4]} 26. Rc6
{[%clk 0:08:13.6]} 26... Rb8 {[%clk 0:05:04.7]} 27. Kd2 {[%clk 0:08:15.1]} 27...
Bxd4 {[%clk 0:05:02.7]} 28. Rxa6 {[%clk 0:08:16]} 28... Rxb3 {[%clk 0:05:03.2]}
29. Rxa5 {[%clk 0:08:14.4]} 29... Ne5 {[%clk 0:04:59.9]} 30. Rd5 {[%clk
0:08:06.6]} 30... Nc4+ {[%clk 0:04:47.1]} 31. Kc2 {[%clk 0:08:06.5]} 31... Rc3+
{[%clk 0:04:45.4]} 32. Kb1 {[%clk 0:08:02.4]} 32... Bf6 {[%clk 0:03:53.4]} 33.
f4 {[%clk 0:08:03.6]} 33... Rb3+ {[%clk 0:03:31]} 34. Kc1 {[%clk 0:08:02.3]}
34... Ra3 {[%clk 0:03:22.4]} 35. Rhd1 {[%clk 0:07:52.9]} 35... Kf8 {[%clk
0:02:35.6]} 36. R1d3 {[%clk 0:06:44.9]} 36... Rxa4 {[%clk 0:02:22.6]} 37. e5
{[%clk 0:06:46.4]} 37... Be7 {[%clk 0:02:23.6]} 38. Rb3 {[%clk 0:06:48]} 38...
g6 {[%clk 0:02:17.5]} 39. Rb8+ {[%clk 0:06:47.7]} 39... Kg7 {[%clk 0:02:17.9]}
40. Rb7 {[%clk 0:06:49]} 40... Ra1+ {[%clk 0:02:01.4]} 41. Rb1 {[%clk
0:06:44.6]} 41... Ra2 {[%clk 0:01:58.8]} 42. Rd7 {[%clk 0:06:37]} 42... Ba3+
{[%clk 0:01:54.7]} 43. Kd1 {[%clk 0:06:37.7]} 43... Ne3+ {[%clk 0:01:56]} 44.
Ke1 {[%clk 0:06:37.4]} 44... Nxg2+ {[%clk 0:01:57.1]} 45. Kf1 {[%clk 0:06:39]}
45... Ne3+ {[%clk 0:01:35.5]} 46. Kg1 {[%clk 0:06:40.4]} 46... Rg2+ {[%clk
0:01:33.4]} 47. Kh1 {[%clk 0:06:40.8]} 47... Rf2 {[%clk 0:01:30.5]} 48. e6
{[%clk 0:06:42.3]} 48... Rxf4 {[%clk 0:01:26.3]} 49. e7 {[%clk 0:06:32]} 49...
Re4 {[%clk 0:01:26.3]} 50. Rb3 {[%clk 0:06:33.1]} 50... Bxe7 {[%clk 0:01:25.1]}
51. Rbb7 {[%clk 0:06:34.4]} 51... Nf5 {[%clk 0:01:22.4]} 52. Rxe7 {[%clk
0:06:36.2]} 52... Rxe7 {[%clk 0:01:23]} 53. Rc7 {[%clk 0:06:37.3]} 53... Rxc7
{[%clk 0:01:23.8]} 0-1

[Event "GrandPrix_29.05"]
[Site "Chess.com"]
[Date "2020.05.29"]
[Round "8"]
[White "IriBu"]
[Black "nikosgal"]
[Result "1-0"]
[WhiteElo "2418"]
[BlackElo "2383"]
[TimeControl "600+2"]
[EndTime "12:57:17 PDT"]
[Termination "IriBu won by resignation"]

1. e4 {[%clk 0:10:01.9]} 1... c5 {[%clk 0:09:58.7]} 2. Nf3 {[%clk 0:10:02.2]}
2... d6 {[%clk 0:10:00]} 3. d4 {[%clk 0:10:03]} 3... cxd4 {[%clk 0:10:01.9]} 4.
Nxd4 {[%clk 0:10:04.4]} 4... Nf6 {[%clk 0:10:03.5]} 5. Nc3 {[%clk 0:10:05.6]}
5... a6 {[%clk 0:10:04.9]} 6. h3 {[%clk 0:10:06.6]} 6... e6 {[%clk 0:10:03.9]}
7. Be3 {[%clk 0:10:04]} 7... b5 {[%clk 0:09:59.8]} 8. a3 {[%clk 0:09:59]} 8...
Bb7 {[%clk 0:10:00.1]} 9. f3 {[%clk 0:10:00]} 9... Nbd7 {[%clk 0:09:45.5]} 10.
g4 {[%clk 0:09:54.7]} 10... Nb6 {[%clk 0:09:28.5]} 11. Qd2 {[%clk 0:09:51.9]}
11... Nfd7 {[%clk 0:09:18.1]} 12. O-O-O {[%clk 0:09:48]} 12... Be7 {[%clk
0:09:13.9]} 13. f4 {[%clk 0:09:41]} 13... Rc8 {[%clk 0:08:58.7]} 14. Kb1 {[%clk
0:09:33.9]} 14... Nc5 {[%clk 0:08:52]} 15. Bd3 {[%clk 0:09:33.7]} 15... Nc4
{[%clk 0:08:20.3]} 16. Qe1 {[%clk 0:09:13.3]} 16... Nxe3 {[%clk 0:08:07.4]} 17.
Qxe3 {[%clk 0:09:13.5]} 17... Qb6 {[%clk 0:08:08.9]} 18. g5 {[%clk 0:08:27.3]}
18... b4 {[%clk 0:08:08.4]} 19. axb4 {[%clk 0:08:25.4]} 19... Qxb4 {[%clk
0:08:09.8]} 20. f5 {[%clk 0:07:49.1]} 20... e5 {[%clk 0:07:46.7]} 21. Nb3 {[%clk
0:07:08.5]} 21... Nxb3 {[%clk 0:07:29.5]} 22. cxb3 {[%clk 0:07:10.4]} 22... Qxb3
{[%clk 0:07:24]} 23. Bc2 {[%clk 0:06:56.1]} 23... Qb4 {[%clk 0:07:21.1]} 24. f6
{[%clk 0:06:08.5]} 24... gxf6 {[%clk 0:07:03.9]} 25. gxf6 {[%clk 0:06:09.3]}
25... Bxf6 {[%clk 0:07:05.4]} 26. Rhf1 {[%clk 0:06:02]} 26... Bd8 {[%clk
0:07:04.9]} 27. Ba4+ {[%clk 0:05:46.5]} 27... Bc6 {[%clk 0:07:01.1]} 28. Qf3
{[%clk 0:05:19.9]} 28... Rf8 {[%clk 0:06:55.7]} 29. Qf5 {[%clk 0:04:21.4]} 29...
Bxa4 {[%clk 0:05:55.8]} 30. Qxc8 {[%clk 0:04:04.8]} 30... Bd7 {[%clk 0:05:28.1]}
31. Qxa6 {[%clk 0:03:56.4]} 31... Bxh3 {[%clk 0:05:28.2]} 32. Rf3 {[%clk
0:03:37.8]} 32... Bg4 {[%clk 0:05:26]} 33. Rfd3 {[%clk 0:03:22.2]} 33... Qb6
{[%clk 0:04:54.9]} 34. Qa4+ {[%clk 0:03:10.4]} 34... Bd7 {[%clk 0:04:55.4]} 35.
Qa3 {[%clk 0:03:05.1]} 35... f5 {[%clk 0:03:36]} 36. Rxd6 {[%clk 0:03:02.2]} 1-0